fUSD/lending_fUSD_20250530
["ID","MTS","AMOUNT","RATE_DAILY","PERIOD"]
[363162399,1748604681635,-420.0,0.00023835,2]
[363162400,1748604681647,-420.0,0.00023835,2]
[363162401,1748604681656,-433.48,0.00023835,2]
[363162402,1748604681664,-420.0,0.00023835,2]
[363162403,1748604681673,-640.5,0.00023835,2]
[363162404,1748604681682,-420.0,0.00023835,2]
[363162405,1748604681691,-420.0,0.00023835,2]
[363162406,1748604681700,-539.07,0.00023835,2]
[363162407,1748604681709,-465.13,0.00023835,2]
[363162408,1748604681718,-420.0,0.00023835,2]
[363162409,1748604681728,-465.38,0.00023835,2]
[363162410,1748604681737,-420.0,0.00023835,2]
[363162411,1748604681746,-250.0,0.00023835,2]
[363162412,1748604681755,-350.25293178,0.00023835,2]
[363162413,1748604681764,-420.0,0.00023835,2]
[363162414,1748604681772,-420.0,0.00023835,2]
[363162415,1748604681781,-420.0,0.00023835,2]
[363162416,1748604681791,-468.76,0.00023835,2]
[363162417,1748604681800,-420.0,0.00023835,2]
[363162418,1748604681809,-420.0,0.00023835,2]
[363162419,1748604681818,-420.0,0.00023835,2]
[363162420,1748604681827,-420.0,0.00023835,2]
[363162421,1748604681836,-420.0,0.00023835,2]
[363162422,1748604681845,-420.0,0.00023835,2]
[363162423,1748604681854,-420.0,0.00023835,2]
[363162424,1748604681863,-452.19,0.00023835,2]
[363162425,1748604681872,-420.0,0.00023835,2]
[363162426,1748604681884,-420.0,0.00023835,2]
[363162427,1748604681895,-420.0,0.00023835,2]
[363162428,1748604681903,-645.55,0.00023835,2]
[363162429,1748604681912,-420.0,0.00023835,2]
[363162430,1748604681922,-420.0,0.00023835,2]
[363162431,1748604681931,-420.98,0.00023835,2]
[363162432,1748604681940,-420.0,0.00023835,2]
[363162433,1748604681949,-420.0,0.00023835,2]
[363162434,1748604681960,-420.0,0.00023835,2]
[363162435,1748604681970,-420.0,0.00023835,2]
[363162436,1748604681979,-441.38,0.00023835,2]
[363162437,1748604681988,-420.0,0.00023835,2]
[363162438,1748604681997,-552.87,0.00023835,2]
[363162439,1748604682007,-420.0,0.00023835,2]
[363162440,1748604682017,-420.0,0.00023835,2]
[363162441,1748604682027,-480.01,0.00023835,2]
[363162442,1748604682036,-293.29557796,0.00023835,2]
[363162443,1748604682047,-420.0,0.00023835,2]
[363162444,1748604682056,-420.0,0.00023835,2]
[363162445,1748604682066,-420.0,0.00023835,2]
[363162446,1748604682076,-420.0,0.00023835,2]
[363162447,1748604682085,-420.0,0.00023835,2]
[363162448,1748604682095,-420.0,0.00023835,2]
[363162449,1748604682105,-420.0,0.00023835,2]
[363162450,1748604682114,-420.0,0.00023835,2]
[363162451,1748604682124,-268.13850509,0.00023835,2]
[363162452,1748604682134,-420.0,0.00023835,2]
[363162453,1748604682145,-702.31,0.00023835,2]
[363162454,1748604682155,-446.43,0.00023835,2]
[363162455,1748604682164,-420.0,0.00023835,2]
[363162456,1748604682174,-438.29,0.00023835,2]
[363162457,1748604682183,-426.9,0.00023835,2]
[363162458,1748604682193,-420.0,0.00023835,2]
[363162459,1748604682202,-420.0,0.00023835,2]
[363162460,1748604682212,-930.8,0.00023835,2]
[363162461,1748604682222,-420.0,0.00023835,2]
[363162462,1748604682231,-420.0,0.00023835,2]
[363162463,1748604682241,-1732.59,0.00023835,2]
[363162464,1748604682250,-555.05,0.00023835,2]
[363162465,1748604682259,-420.0,0.00023835,2]
[363162466,1748604682269,-420.0,0.00023835,2]
[363162467,1748604682278,-420.0,0.00023835,2]
[363162468,1748604682287,-1062.63,0.00023835,2]
[363162469,1748604682296,-580.84,0.00023835,2]
[363162470,1748604682305,-420.0,0.00023835,2]
[363162471,1748604682315,-642.32,0.00023835,2]
[363162472,1748604682324,-718.47,0.00023835,2]
[363162473,1748604682333,-497.4,0.00023835,2]
[363162474,1748604682342,-984.73,0.00023835,2]
[363162475,1748604682352,-576.3,0.00023835,2]
[363162476,1748604682363,-420.0,0.00023835,2]
[363162477,1748604682372,-800.26,0.00023835,2]
[363162478,1748604682381,-718.15,0.00023835,2]
[363162479,1748604682390,-612.87,0.00023835,2]
[363162480,1748604682399,-770.54,0.00023835,2]
[363162481,1748604682408,-568.6,0.00023835,2]
[363162482,1748604682417,-728.67,0.00023835,2]
[363162483,1748604682426,-595.4,0.00023835,2]
[363162484,1748604682435,-420.0,0.00023835,2]
[363162485,1748604682444,-1523.16,0.00023835,2]
[363162486,1748604682454,-439.89,0.00023835,2]
[363162487,1748604682463,-1185.02,0.00023835,2]
[363162488,1748604682473,-473.85,0.00023835,2]
[363162489,1748604682484,-1155.34,0.00023835,2]
[363162490,1748604682493,-852.11,0.00023835,2]
[363162491,1748604682503,-536.09,0.00023835,2]
[363162492,1748604682513,-499.47,0.00023835,2]
[363162493,1748604682522,-1064.97,0.00023835,2]
[363162494,1748604682531,-553.07,0.00023835,2]
[363162495,1748604682541,-550.09,0.00023835,2]
[363162496,1748604682550,-1249.34,0.00023835,2]
[363162497,1748604682559,-1087.42,0.00023835,2]
[363162498,1748604682569,-420.0,0.00023835,2]
[363162499,1748604682578,-748.6,0.00023835,2]
[363162500,1748604682588,-420.0,0.00023835,2]
[363162501,1748604682597,-633.8,0.00023835,2]
[363162502,1748604682607,-569.25,0.00023835,2]
[363162503,1748604682616,-420.0,0.00023835,2]
[363162504,1748604682626,-528.37,0.00023835,2]
[363162505,1748604682635,-420.0,0.00023835,2]
[363162506,1748604682646,-1602.73,0.00023835,2]
[363162507,1748604682656,-569.24,0.00023835,2]
[363162508,1748604682665,-457.6,0.00023835,2]
[363162509,1748604682675,-1032.32,0.00023835,2]
[363162510,1748604682684,-707.39,0.00023835,2]
[363162511,1748604682694,-910.96,0.00023835,2]
[363162512,1748604682703,-476.94,0.00023835,2]
[363162513,1748604682712,-1017.67,0.00023835,2]
[363162514,1748604682722,-709.34,0.00023835,2]
[363162515,1748604682731,-501.18,0.00023835,2]
[363162516,1748604682740,-677.94,0.00023835,2]
[363162517,1748604682749,-1214.26,0.00023835,2]
[363162518,1748604682759,-729.59,0.00023835,2]
[363162519,1748604682769,-646.84,0.00023835,2]
[363162520,1748604682778,-473.0,0.00023835,2]
[363162521,1748604682788,-633.82,0.00023835,2]
[363162522,1748604682797,-1308.02,0.00023835,2]
[363162523,1748604682806,-454.15,0.00023835,2]
[363162524,1748604682815,-420.0,0.00023835,2]
[363162525,1748604682824,-530.64,0.00023835,2]
[363162526,1748604682833,-520.26,0.00023835,2]
[363162527,1748604682842,-460.64,0.00023835,2]
[363162528,1748604682851,-609.32,0.00023835,2]
[363162529,1748604682860,-349.9489908,0.00023835,2]
[363162530,1748604682869,-420.0,0.00023835,2]
[363162531,1748604682878,-1385.17,0.00023835,2]
[363162532,1748604682890,-611.87,0.00023835,2]
[363162533,1748604682899,-457.58,0.00023835,2]
[363162534,1748604682907,-498.5,0.00023835,2]
[363162535,1748604682917,-1068.05,0.00023835,2]
[363162536,1748604682927,-534.02,0.00023835,2]
[363162537,1748604682936,-420.0,0.00023835,2]
[363162538,1748604682945,-423.02,0.00023835,2]
[363162539,1748604682955,-1806.1,0.00023835,2]
[363162540,1748604682963,-955.38,0.00023835,2]
[363162541,1748604682972,-437.24,0.00023835,2]
[363162542,1748604682981,-420.0,0.00023835,2]
[363162543,1748604682990,-998.33,0.00023835,2]
[363162544,1748604682999,-1133.83,0.00023835,2]
[363162545,1748604683008,-768.21,0.00023835,2]
[363162546,1748604683017,-774.62,0.00023835,2]
[363162547,1748604683027,-420.0,0.00023835,2]
[363162548,1748604683037,-735.92,0.00023835,2]
[363162549,1748604683046,-1319.04,0.00023835,2]
[363162550,1748604683054,-448.54,0.00023835,2]
[363162551,1748604683063,-420.0,0.00023835,2]
[363162552,1748604683072,-622.98,0.00023835,2]
[363162553,1748604683081,-420.0,0.00023835,2]
[363162554,1748604683091,-1350.91,0.00023835,2]
[363162555,1748604683099,-420.0,0.00023835,2]
[363162556,1748604683108,-420.0,0.00023835,2]
[363162557,1748604683117,-519.24,0.00023835,2]
[363162558,1748604683126,-489.38,0.00023835,2]
[363162559,1748604683136,-420.0,0.00023835,2]
[363162560,1748604683146,-420.0,0.00023835,2]
[363162561,1748604683155,-613.75,0.00023835,2]
[363162562,1748604683164,-606.72,0.00023835,2]
[363162563,1748604683173,-420.0,0.00023835,2]
[363162564,1748604683182,-420.0,0.00023835,2]
[363162565,1748604683191,-476.62,0.00023835,2]
[363162566,1748604683200,-611.09,0.00023835,2]
[363162567,1748604683209,-466.39,0.00023835,2]
[363162568,1748604683219,-420.0,0.00023835,2]
[363162569,1748604683229,-420.0,0.00023835,2]
[363162570,1748604683238,-479.89,0.00023835,2]
[363162571,1748604683247,-777.7,0.00023835,2]
[363162572,1748604683257,-544.4,0.00023835,2]
[363162573,1748604683266,-514.5155126,0.00023835,2]
[363162574,1748604683275,-420.0,0.00023835,2]
[363162575,1748604683285,-1992.36,0.00023835,2]
[363162576,1748604683294,-449.12,0.00023835,2]
[363162577,1748604683303,-1690.08,0.00023835,2]
[363162578,1748604683312,-935.34,0.00023835,2]
[363162579,1748604683321,-474.41,0.00023835,2]
[363162580,1748604683331,-420.0,0.00023835,2]
[363162581,1748604683506,-420.0,0.00023835,2]
[363162582,1748604683516,-973.78,0.00023835,2]
[363162583,1748604683527,-574.23,0.00023835,2]
[363162584,1748604683536,-1023.52,0.00023835,2]
[363162585,1748604683546,-577.88,0.00023835,2]
[363162586,1748604683556,-1661.66,0.00023835,2]
[363162587,1748604683565,-531.71,0.00023835,2]
[363162588,1748604683574,-420.0,0.00023835,2]
[363162589,1748604683584,-324.56292373,0.00023835,2]
[363162590,1748604683593,-772.75,0.00023835,2]
[363162591,1748604683603,-420.0,0.00023835,2]
[363162592,1748604683612,-605.59,0.00023835,2]
[363162593,1748604683622,-420.0,0.00023835,2]
[363162594,1748604683632,-420.0,0.00023835,2]
[363162595,1748604683642,-588.38,0.00023835,2]
[363162596,1748604683652,-578.91,0.00023835,2]
[363162597,1748604683662,-420.0,0.00023835,2]
[363162598,1748604683672,-606.64,0.00023835,2]
[363162599,1748604683682,-443.15,0.00023835,2]
[363162600,1748604683691,-420.0,0.00023835,2]
[363162601,1748604683701,-1125.77,0.00023835,2]
[363162602,1748604683711,-420.0,0.00023835,2]
[363162603,1748604683720,-938.03,0.00023835,2]
[363162604,1748604683730,-931.36,0.00023835,2]
[363162605,1748604683740,-420.0,0.00023835,2]
[363162606,1748604683749,-420.0,0.00023835,2]
[363162607,1748604683759,-1301.2,0.00023835,2]
[363162608,1748604683768,-775.29,0.00023835,2]
[363162609,1748604683777,-420.0,0.00023835,2]
[363162610,1748604683787,-420.0,0.00023835,2]
[363162611,1748604683796,-420.0,0.00023835,2]
[363162612,1748604683806,-575.37,0.00023835,2]
[363162613,1748604683816,-448.51184997,0.00023835,2]
[363162614,1748604683825,-483.2,0.00023835,2]
[363162615,1748604683835,-534.46,0.00023835,2]
[363162616,1748604683845,-420.0,0.00023835,2]
[363162617,1748604683855,-795.5,0.00023835,2]
[363162618,1748604683865,-487.54,0.00023835,2]
[363162619,1748604683874,-420.0,0.00023835,2]
[363162620,1748604683887,-722.47,0.00023835,2]
[363162621,1748604683898,-423.44,0.00023835,2]
[363162622,1748604683907,-420.0,0.00023835,2]
[363162623,1748604683917,-674.84,0.00023835,2]
[363162624,1748604683927,-1084.93,0.00023835,2]
[363162625,1748604683937,-956.78,0.00023835,2]
[363162626,1748604683947,-1747.0,0.00023835,2]
[363162627,1748604683956,-523.54,0.00023835,2]
[363162628,1748604683965,-499.91,0.00023835,2]
[363162629,1748604683975,-903.59,0.00023835,2]
[363162630,1748604683985,-865.58,0.00023835,2]
[363162631,1748604683994,-900.74,0.00023835,2]
[363162632,1748604684004,-420.0,0.00023835,2]
[363162633,1748604684013,-1372.63,0.00023835,2]
[363162634,1748604684023,-588.22,0.00023835,2]
[363162635,1748604684032,-429.11,0.00023835,2]
[363162636,1748604684041,-770.98,0.00023835,2]
[363162637,1748604684050,-420.0,0.00023835,2]
[363162638,1748604684060,-1375.2,0.00023835,2]
[363162639,1748604684069,-768.17,0.00023835,2]
[363162640,1748604684079,-517.47,0.00023835,2]
[363162641,1748604684089,-420.0,0.00023835,2]
[363162642,1748604684099,-623.0,0.00023835,2]
[363162643,1748604684109,-793.05,0.00023835,2]
[363162644,1748604684118,-1241.06,0.00023835,2]
[363162645,1748604684128,-765.2,0.00023835,2]
[363162646,1748604684138,-420.0,0.00023835,2]
[363162647,1748604684148,-421.91,0.00023835,2]
[363162648,1748604684157,-421.93,0.00023835,2]
[363162649,1748604684166,-485.75,0.00023835,2]
[363162650,1748604684176,-420.0,0.00023835,2]
[363162651,1748604684185,-420.0,0.00023835,2]
[363162652,1748604684194,-283.56205,0.00023835,7]
[363162653,1748604684204,-491.63,0.00023835,2]
[363162654,1748604684213,-502.61,0.00023835,2]
[363162655,1748604684223,-283.56205,0.00023835,7]
[363162656,1748604684233,-430.15,0.00023835,2]
[363162657,1748604684244,-9469.1,0.00023835,2]
[363162658,1748604684254,-10073.27,0.00023835,2]
[363162659,1748604684264,-742.8,0.00023835,2]
[363162660,1748604684274,-420.0,0.00023835,2]
[363162661,1748604684284,-2689.83,0.00023835,2]
[363162662,1748604684294,-1981.59,0.00023835,2]
[363162663,1748604684305,-607.85,0.00023835,2]
[363162664,1748604684315,-564.47,0.00023835,2]
[363162665,1748604684325,-1369.33,0.00023835,2]
[363162666,1748604684335,-576.41,0.00023835,2]
[363162667,1748604684345,-12307.47,0.00023835,2]
[363162668,1748604684354,-1369.38,0.00023835,2]
[363162669,1748604684364,-863.99,0.00023835,2]
[363162670,1748604684374,-1245.87,0.00023835,2]
[363162671,1748604684383,-5194.13,0.00023835,2]
[363162672,1748604684393,-420.0,0.00023835,2]
[363162673,1748604684402,-880.77,0.00023835,2]
[363162674,1748604684411,-563.44,0.00023835,2]
[363162675,1748604684420,-2466.96,0.00023835,2]
[363162676,1748604684429,-420.0,0.00023835,2]
[363162677,1748604684437,-631.65,0.00023835,2]
[363162678,1748604684446,-659.94,0.00023835,2]
[363162679,1748604684455,-816.72,0.00023835,2]
[363162680,1748604684464,-420.0,0.00023835,2]
[363162681,1748604684473,-2995.72,0.00023835,2]
[363162682,1748604684481,-598.75,0.00023835,2]
[363162683,1748604684490,-2447.94,0.00023835,2]
[363162684,1748604684499,-2947.99,0.00023835,2]
[363162685,1748604684508,-420.0,0.00023835,2]
[363162686,1748604684517,-151.0,0.00023835,7]
[363162687,1748604684526,-1153.83,0.00023835,2]
[363162688,1748604684535,-3076.84,0.00023835,2]
[363162689,1748604684544,-769.26,0.00023835,2]
[363162690,1748604684553,-924.16,0.00023835,2]
[363162691,1748604684562,-644.07,0.00023835,2]
[363162692,1748604684572,-420.0,0.00023835,2]
[363162693,1748604684582,-1310.77,0.00023835,2]
[363162694,1748604684591,-1040.66,0.00023835,2]
[363162695,1748604684601,-520.85,0.00023835,2]
[363162696,1748604684610,-1315.08,0.00023835,2]
[363162697,1748604684620,-420.0,0.00023835,2]
[363162698,1748604684633,-1506.01,0.00023835,2]
[363162699,1748604684657,-420.0,0.00023835,2]
[363162700,1748604684674,-1515.01,0.00023835,2]
[363162701,1748604684694,-420.0,0.00023835,2]
[363162702,1748604684713,-1337.36,0.00023835,2]
[363162703,1748604684730,-3730.71,0.00023835,2]
[363162704,1748604684750,-425.25,0.00023835,2]
[363162705,1748604684768,-1314.08,0.00023835,2]
[363162706,1748604684789,-759.43,0.00023835,2]
[363162707,1748604684808,-909.46,0.00023835,2]
[363162708,1748604684827,-420.0,0.00023835,2]
[363162709,1748604684842,-673.25,0.00023835,2]
[363162710,1748604684861,-612.32,0.00023835,2]
[363162711,1748604684873,-1256.48,0.00023835,2]
[363162712,1748604684892,-2157.82,0.00023835,2]
[363162713,1748604684907,-1075.01,0.00023835,2]
[363162714,1748604684922,-1309.63,0.00023835,2]
[363162715,1748604684937,-915.55,0.00023835,2]
[363162716,1748604684951,-1218.05,0.00023835,2]
[363162717,1748604684968,-2231.36,0.00023835,2]
[363162718,1748604684982,-420.0,0.00023835,2]
[363162719,1748604684997,-420.0,0.00023835,2]
[363162720,1748604685014,-2569.35,0.00023835,2]
[363162721,1748604685029,-6828.35,0.00023835,2]
[363162722,1748604685045,-1631.2,0.00023835,2]
[363162723,1748604685061,-611.68,0.00023835,2]
[363162724,1748604685076,-3976.57,0.00023835,2]
[363162725,1748604685092,-555.53,0.00023835,2]
[363162726,1748604685107,-1192.67,0.00023835,2]
[363162727,1748604685123,-3327.44,0.00023835,2]
[363162728,1748604685138,-828.67,0.00023835,2]
[363162729,1748604685154,-420.0,0.00023835,2]
[363162730,1748604685169,-3739.43,0.00023835,2]
[363162731,1748604685185,-420.0,0.00023835,2]
[363162732,1748604685201,-772.93,0.00023835,2]
[363162733,1748604685216,-2900.14,0.00023835,2]
[363162734,1748604685231,-3733.9,0.00023835,2]
[363162735,1748604685247,-1294.2,0.00023835,2]
[363162736,1748604685261,-1235.41,0.00023835,2]
[363162737,1748604685277,-5087.08,0.00023835,2]
[363162738,1748604685292,-1678.74,0.00023835,2]
[363162739,1748604685307,-582.4,0.00023835,2]
[363162740,1748604685322,-1439.67,0.00023835,2]
[363162741,1748604685338,-580.13,0.00023835,2]
[363162742,1748604685354,-6434.09,0.00023835,2]
[363162743,1748604685369,-759.66,0.00023835,2]
[363162744,1748604685385,-3623.76,0.00023835,2]
[363162745,1748604685401,-655.72,0.00023835,2]
[363162746,1748604685415,-642.76,0.00023835,2]
[363162747,1748604685430,-481.9,0.00023835,2]
[363162748,1748604685445,-447.8,0.00023835,2]
[363162749,1748604685460,-549.6,0.00023835,2]
[363162750,1748604685475,-3772.06,0.00023835,2]
[363162751,1748604685490,-2238.52,0.00023835,2]
[363162752,1748604685504,-656.16,0.00023835,2]
[363162753,1748604685519,-2601.73,0.00023835,2]
[363162754,1748604685534,-1054.88,0.00023835,2]
[363162755,1748604685549,-1168.1,0.00023835,2]
[363162756,1748604685564,-568.59,0.00023835,2]
[363162757,1748604685579,-1669.51,0.00023835,2]
[363162758,1748604685593,-581.44,0.00023835,2]
[363162759,1748604685608,-999.1,0.00023835,2]
[363162760,1748604685623,-420.0,0.00023835,2]
[363162761,1748604685641,-3565.93,0.00023835,2]
[363162762,1748604685656,-420.0,0.00023835,2]
[363162763,1748604685670,-644.61,0.00023835,2]
[363162764,1748604685686,-1021.83,0.00023835,2]
[363162765,1748604685702,-1573.75,0.00023835,2]
[363162766,1748604685717,-420.0,0.00023835,2]
[363162767,1748604685733,-1017.27,0.00023835,2]
[363162768,1748604685747,-700.99,0.00023835,2]
[363162769,1748604685763,-2494.53,0.00023835,2]
[363162770,1748604685779,-680.88,0.00023835,2]
[363162771,1748604685794,-2312.08,0.00023835,2]
[363162772,1748604685809,-1182.54,0.00023835,2]
[363162773,1748604685824,-906.67,0.00023835,2]
[363162774,1748604685840,-2382.61,0.00023835,2]
[363162775,1748604685854,-8094.13,0.00023835,2]
[363162776,1748604685869,-516.49,0.00023835,2]
[363162777,1748604685887,-3383.87,0.00023835,2]
[363162778,1748604685903,-927.42,0.00023835,2]
[363162779,1748604685917,-4483.36,0.00023835,2]
[363162780,1748604685933,-515.51,0.00023835,2]
[363162781,1748604685946,-639.62,0.00023835,2]
[363162782,1748604685959,-2136.49,0.00023835,2]
[363162783,1748604685971,-420.0,0.00023835,2]
[363162784,1748604685983,-839.58,0.00023835,2]
[363162785,1748604685996,-979.47,0.00023835,2]
[363162786,1748604686011,-1149.03,0.00023835,2]
[363162787,1748604686026,-608.6,0.00023835,2]
[363162788,1748604686042,-939.09,0.00023835,2]
[363162789,1748604686057,-1482.61,0.00023835,2]
[363162790,1748604686072,-1889.77,0.00023835,2]
[363162791,1748604686086,-750.99,0.00023835,2]
[363162792,1748604686100,-960.87,0.00023835,2]
[363162793,1748604686115,-1000.0,0.00023835,2]
[363162794,1748604686129,-514.33,0.00023835,2]
[363162795,1748604686144,-431.76,0.00023835,2]
[363162796,1748604686158,-866.43,0.00023835,2]
[363162797,1748604686172,-1436.8,0.00023835,2]
[363162798,1748604686187,-493.51,0.00023835,2]
[363162799,1748604686202,-10057.47,0.00023835,2]
[363162800,1748604686216,-754.64,0.00023835,2]
[363162801,1748604686231,-420.0,0.00023835,2]
[363162802,1748604686253,-574.11,0.00023835,2]
[363162803,1748604686278,-420.0,0.00023835,2]
[363162804,1748604686300,-2523.48,0.00023835,2]
[363162805,1748604686310,-864.09,0.00023835,2]
[363162806,1748604686324,-420.0,0.00023835,2]
[363162807,1748604686337,-595.39,0.00023835,2]
[363162808,1748604686347,-2343.17,0.00023835,2]
[363162809,1748604686360,-1350.61,0.00023835,2]
[363162810,1748604686373,-1275.82,0.00023835,2]
[363162811,1748604686656,-785.99,0.00023835,2]
[363162812,1748604686695,-10528.63,0.00023835,2]
[363162813,1748604686712,-420.0,0.00023835,2]
[363162814,1748604686723,-746.67,0.00023835,2]
[363162815,1748604686733,-1173.07,0.00023835,2]
[363162816,1748604686749,-1197.98,0.00023835,2]
[363162817,1748604686759,-2200.67,0.00023835,2]
[363162818,1748604686769,-845.16,0.00023835,2]
[363162819,1748604686779,-795.97,0.00023835,2]
[363162820,1748604686788,-1300.55,0.00023835,2]
[363162821,1748604686798,-785.56,0.00023835,2]
[363162822,1748604686807,-6935.34,0.00023835,2]
[363162823,1748604686817,-420.0,0.00023835,2]
[363162824,1748604686827,-420.0,0.00023835,2]
[363162825,1748604686836,-420.0,0.00023835,2]
[363162826,1748604686846,-5936.94,0.00023835,2]
[363162827,1748604686855,-1476.35,0.00023835,2]
[363162828,1748604686866,-420.0,0.00023835,2]
[363162829,1748604686877,-123071.45,0.00023835,2]
[363162830,1748604686890,-4600.82,0.00023835,2]
[363162831,1748604686902,-574.07,0.00023835,2]
[363162832,1748604686912,-420.0,0.00023835,2]
[363162833,1748604686922,-1760.95,0.00023835,2]
[363162834,1748604686932,-632.71,0.00023835,2]
[363162835,1748604686941,-420.0,0.00023835,2]
[363162836,1748604686951,-792.56,0.00023835,2]
[363162837,1748604686960,-876.4,0.00023835,2]
[363162838,1748604686971,-891.11,0.00023835,2]
[363162839,1748604686981,-1035.56,0.00023835,2]
[363162840,1748604686991,-3046.1,0.00023835,2]
[363162841,1748604687000,-868.44,0.00023835,2]
[363162842,1748604687009,-781.24,0.00023835,2]
[363162843,1748604687019,-1178.18,0.00023835,2]
[363162844,1748604687030,-31646.38,0.00023835,2]
[363162845,1748604687039,-420.0,0.00023835,2]
[363162846,1748604687049,-415.94496589,0.00023835,2]
[363162847,1748604687059,-996.67,0.00023835,2]
[363162848,1748604687070,-1089.79,0.00023835,2]
[363162849,1748604687080,-420.0,0.00023835,2]
[363162850,1748604687090,-420.0,0.00023835,2]
[363162851,1748604687100,-875.57,0.00023835,2]
[363162852,1748604687110,-2264.05,0.00023835,2]
[363162853,1748604687119,-420.0,0.00023835,2]
[363162854,1748604687129,-1584.69,0.00023835,2]
[363162855,1748604687139,-951.88,0.00023835,2]
[363162856,1748604687150,-520.84,0.00023835,2]
[363162857,1748604687159,-1161.85,0.00023835,2]
[363162858,1748604687170,-423.91,0.00023835,2]
[363162859,1748604687180,-1822.04,0.00023835,2]
[363162860,1748604687190,-420.0,0.00023835,2]
[363162861,1748604687200,-654.3,0.00023835,2]
[363162862,1748604687209,-420.0,0.00023835,2]
[363162863,1748604687219,-761.08,0.00023835,2]
[363162864,1748604687228,-296.44,0.00023836,2]
[363162865,1748604687238,-907.67,0.00023836,2]
[363162866,1748604687248,-170.34,0.00023836,2]
[363162867,1748604687258,-170.34,0.00023836,2]
[363162868,1748604687268,-453.91,0.00023836,2]
[363162869,1748604687278,-903.0,0.00023836,2]
[363162870,1748604687288,-340.6,0.00023836,2]
[363162871,1748604687298,-976.8,0.00023836,2]
[363162872,1748604687309,-284258.29,0.000239,7]
[363162873,1748604687319,-283.56205,0.000239,7]
[363162874,1748604687328,-283.56205,0.000239,7]
[363162875,1748604687339,-1451.673205,0.000239,7]
[363162876,1748604687349,-1451.673205,0.000239,7]
[363162877,1748604687358,-2591.86224837,0.00023934,10]
[363162878,1748604687367,-805.52,0.00023973,2]
[363162879,1748604687377,-52947.14249952,0.00024,2]
[363162880,1748604687387,-60282.81807719,0.00024,2]
[363162881,1748604687399,-480.0,0.00024,2]
[363162882,1748604687408,-4000.0,0.00024,4]
[363162883,1748604687418,-163.04,0.00024,2]
[363162884,1748604687427,-163.04,0.00024,2]
[363162885,1748604687436,-163.04,0.00024,2]
[363162886,1748604687446,-163.04,0.00024,2]
[363162887,1748604687455,-163.04,0.00024,2]
[363162888,1748604687464,-163.04,0.00024,2]
[363162889,1748604687474,-326.08,0.00024,2]
[363162890,1748604687484,-163.04,0.00024,2]
[363162891,1748604687494,-163.04,0.00024,2]
[363162892,1748604687504,-175.47148246,0.00024009,2]
[363162893,1748604687514,-2591.86224837,0.00024072,10]
[363162894,1748604687523,-300.0,0.00024108,2]
[363162895,1748604687533,-300.0,0.00024108,2]
[363162896,1748604687542,-1573.44,0.00024108,2]
[363162897,1748604687553,-1391.71,0.00024108,2]
[363162898,1748604687563,-7429.13,0.00024108,2]